[Event "Titled Tuesday Blitz July 4 Late 2023"]
[White "ATM622"]
[Black "Fernandez Guillen, Ernesto J."]
[BlackFideId "3512428"]
[WhiteElo "2590"]
[BlackElo "2744"]
[Result "1-0"]
[Round "11"]
[TimeControl "180+2"]
[Date "2023.07.04"]
[WhiteClock "0:02:02"]
[BlackClock "0:01:42"]
[Board "24"]

1. d4 {[%clk 0:03:00]}  Nf6 {[%clk 0:02:53]} 2. c4 {[%clk 0:03:00]}  e6 {[%clk 0:02:51]} 3. g3 {[%clk 0:03:01]}  Bb4+ {[%clk 0:02:51]} 4. Nd2 {[%clk 0:03:00]}  Qe7 {[%clk 0:02:52]} 5. Bg2 {[%clk 0:03:00]}  O-O {[%clk 0:02:53]} 6. Nf3 {[%clk 0:03:00]}  d5 {[%clk 0:02:53]} 7. Qc2 {[%clk 0:02:58]}  b6 {[%clk 0:02:53]} 8. O-O {[%clk 0:02:57]}  Bb7 {[%clk 0:02:53]} 9. a3 {[%clk 0:02:53]}  Bxd2 {[%clk 0:02:53]} 10. Nxd2 {[%clk 0:02:52]}  c5 {[%clk 0:02:52]} 11. dxc5 {[%clk 0:02:44]}  bxc5 {[%clk 0:02:53]} 12. cxd5 {[%clk 0:02:43]}  exd5 {[%clk 0:02:53]} 13. Nf3 {[%clk 0:02:43]}  Nbd7 {[%clk 0:02:52]} 14. Rd1 {[%clk 0:02:40]}  Rac8 {[%clk 0:02:51]} 15. Nh4 {[%clk 0:02:38]}  g6 {[%clk 0:02:50]} 16. Bh6 {[%clk 0:02:36]}  Rfe8 {[%clk 0:02:50]} 17. Rac1 {[%clk 0:02:36]}  Qxe2 {[%clk 0:02:48]} 18. Qxe2 {[%clk 0:02:24]}  Rxe2 {[%clk 0:02:49]} 19. b4 {[%clk 0:02:23]}  Ne4 {[%clk 0:02:30]} 20. Bf3 {[%clk 0:02:18]}  Nxf2 {[%clk 0:02:09]} 21. Bxe2 {[%clk 0:02:18]}  Nxd1 {[%clk 0:02:10]} 22. Bxd1 {[%clk 0:02:18]}  cxb4 {[%clk 0:02:08]} 23. Rxc8+ {[%clk 0:02:17]}  Bxc8 {[%clk 0:02:09]} 24. axb4 {[%clk 0:02:18]}  Nb6 {[%clk 0:02:06]} 25. Be3 {[%clk 0:02:16]}  f5 {[%clk 0:02:07]} 26. Bb3 {[%clk 0:02:15]}  Bb7 {[%clk 0:02:06]} 27. Nf3 {[%clk 0:02:14]}  Kf7 {[%clk 0:02:05]} 28. Ng5+ {[%clk 0:02:14]}  Kf6 {[%clk 0:02:03]} 29. Nxh7+ {[%clk 0:02:14]}  Ke5 {[%clk 0:02:03]} 30. Kf2 {[%clk 0:02:12]}  Ba6 {[%clk 0:01:59]} 31. Ng5 {[%clk 0:02:11]}  d4 {[%clk 0:01:55]} 32. Nf3+ {[%clk 0:02:11]}  Ke4 {[%clk 0:01:55]} 33. Nxd4 {[%clk 0:02:11]}  Nc4 {[%clk 0:01:56]} 34. Bc2+ {[%clk 0:02:10]}  Kd5 {[%clk 0:01:56]} 35. b5 {[%clk 0:02:09]}  Bb7 {[%clk 0:01:49]} 36. Bd1 {[%clk 0:02:09]}  Ke5 {[%clk 0:01:47]} 37. Bf3 {[%clk 0:02:06]}  Be4 {[%clk 0:01:45]} 38. Nc6+ {[%clk 0:02:04]}  Kd5 {[%clk 0:01:44]} 39. Bxe4+ {[%clk 0:02:04]}  Kxe4 {[%clk 0:01:45]} 40. Bxa7 {[%clk 0:02:04]}  Nd6 {[%clk 0:01:46]} 41. b6 {[%clk 0:02:03]}  Nb7 {[%clk 0:01:45]} 42. h4 {[%clk 0:02:02]}  Kd5 {[%clk 0:01:42]} 43. Ne7+ {[%clk 0:02:02]} 1-0


[Site "https://www.chess.com"]

[Event "Titled Tuesday Blitz July 4 Late 2023"]
[White "Pulvett Marin, Daniel Eduardo"]
[Black "musclemonster12"]
[WhiteFideId "3900410"]
[WhiteElo "2731"]
[BlackElo "2564"]
[Result "1-0"]
[Round "11"]
[TimeControl "180+2"]
[Date "2023.07.04"]
[WhiteClock "0:00:29"]
[BlackClock "0:00:04"]
[Board "25"]

1. d4 {[%clk 0:02:59]}  Nf6 {[%clk 0:02:59]} 2. Nc3 {[%clk 0:02:57]}  d5 {[%clk 0:02:57]} 3. Bf4 {[%clk 0:02:57]}  e6 {[%clk 0:02:57]} 4. e3 {[%clk 0:02:57]}  Bb4 {[%clk 0:02:56]} 5. Bd3 {[%clk 0:02:58]}  c5 {[%clk 0:02:56]} 6. dxc5 {[%clk 0:02:59]}  Nbd7 {[%clk 0:02:56]} 7. Ne2 {[%clk 0:02:59]}  a6 {[%clk 0:02:55]} 8. Bg3 {[%clk 0:02:58]}  Bxc5 {[%clk 0:02:55]} 9. O-O {[%clk 0:02:50]}  Nh5 {[%clk 0:02:54]} 10. e4 {[%clk 0:02:34]}  Nxg3 {[%clk 0:02:53]} 11. Nxg3 {[%clk 0:02:35]}  d4 {[%clk 0:02:43]} 12. Nce2 {[%clk 0:02:34]}  O-O {[%clk 0:02:42]} 13. f4 {[%clk 0:02:32]}  e5 {[%clk 0:02:27]} 14. Qd2 {[%clk 0:02:14]}  f6 {[%clk 0:02:10]} 15. f5 {[%clk 0:02:09]}  Nb6 {[%clk 0:02:06]} 16. b4 {[%clk 0:02:00]}  Bd6 {[%clk 0:02:03]} 17. a4 {[%clk 0:02:00]}  Kf7 {[%clk 0:01:58]} 18. a5 {[%clk 0:01:57]}  Nd7 {[%clk 0:01:58]} 19. Nh5 {[%clk 0:01:55]}  g6 {[%clk 0:01:46]} 20. Bc4+ {[%clk 0:01:45]}  Ke7 {[%clk 0:01:46]} 21. Qh6 {[%clk 0:01:33]}  gxh5 {[%clk 0:01:29]} 22. Qxh7+ {[%clk 0:01:33]}  Ke8 {[%clk 0:01:29]} 23. Qxh5+ {[%clk 0:01:33]}  Ke7 {[%clk 0:01:29]} 24. Qh7+ {[%clk 0:01:22]}  Ke8 {[%clk 0:01:29]} 25. Qg6+ {[%clk 0:01:17]}  Ke7 {[%clk 0:01:26]} 26. Ng3 {[%clk 0:01:00]}  Qe8 {[%clk 0:01:25]} 27. Nh5 {[%clk 0:00:58]}  Kd8 {[%clk 0:00:37]} 28. Ng7 {[%clk 0:00:56]}  Qxg6 {[%clk 0:00:23]} 29. fxg6 {[%clk 0:00:57]}  Nb8 {[%clk 0:00:23]} 30. Nf5 {[%clk 0:00:54]}  Bxf5 {[%clk 0:00:18]} 31. exf5 {[%clk 0:00:52]}  Nc6 {[%clk 0:00:17]} 32. g7 {[%clk 0:00:51]}  Re8 {[%clk 0:00:16]} 33. g8=Q {[%clk 0:00:49]}  Rxg8 {[%clk 0:00:16]} 34. Bxg8 {[%clk 0:00:49]}  Bxb4 {[%clk 0:00:17]} 35. Rab1 {[%clk 0:00:46]}  e4 {[%clk 0:00:16]} 36. Bd5 {[%clk 0:00:45]}  Bc5 {[%clk 0:00:13]} 37. Rxb7 {[%clk 0:00:43]}  d3+ {[%clk 0:00:11]} 38. Kh1 {[%clk 0:00:43]}  e3 {[%clk 0:00:08]} 39. cxd3 {[%clk 0:00:38]}  Rc8 {[%clk 0:00:07]} 40. Rc1 {[%clk 0:00:35]}  Nd4 {[%clk 0:00:05]} 41. Be6 {[%clk 0:00:29]}  Nxe6 {[%clk 0:00:05]} 42. fxe6 {[%clk 0:00:30]}  e2 {[%clk 0:00:06]} 43. d4 {[%clk 0:00:29]}  Bb4 {[%clk 0:00:04]} 44. Rd7+ {[%clk 0:00:30]}  Ke8 {[%clk 0:00:04]} 45. Rxc8# {[%clk 0:00:29]} 1-0


[Site "https://www.chess.com"]

[Event "Titled Tuesday Blitz July 4 Late 2023"]
[White "Erenberg, Ariel"]
[Black "Yeritsyan, Hayk"]
[WhiteFideId "2811634"]
[BlackFideId "13307320"]
[WhiteElo "2718"]
[BlackElo "2516"]
[Result "0-1"]
[Round "11"]
[TimeControl "180+2"]
[Date "2023.07.04"]
[WhiteClock "0:00:00"]
[BlackClock "0:00:52"]
[Board "26"]

1. b3 {[%clk 0:02:54]}  d5 {[%clk 0:02:59]} 2. Bb2 {[%clk 0:02:54]}  Bf5 {[%clk 0:03:00]} 3. g3 {[%clk 0:02:54]}  e6 {[%clk 0:03:00]} 4. Bg2 {[%clk 0:02:55]}  Nf6 {[%clk 0:03:00]} 5. e3 {[%clk 0:02:55]}  h6 {[%clk 0:03:00]} 6. Ne2 {[%clk 0:02:56]}  c6 {[%clk 0:03:00]} 7. d3 {[%clk 0:02:56]}  Be7 {[%clk 0:03:01]} 8. Nd2 {[%clk 0:02:57]}  O-O {[%clk 0:03:01]} 9. h3 {[%clk 0:02:58]}  Bh7 {[%clk 0:03:02]} 10. a3 {[%clk 0:02:58]}  Nbd7 {[%clk 0:03:03]} 11. g4 {[%clk 0:02:58]}  b5 {[%clk 0:03:03]} 12. Ng3 {[%clk 0:02:57]}  a5 {[%clk 0:03:02]} 13. h4 {[%clk 0:02:57]}  Ne8 {[%clk 0:02:58]} 14. g5 {[%clk 0:02:53]}  hxg5 {[%clk 0:02:31]} 15. hxg5 {[%clk 0:02:54]}  Bxg5 {[%clk 0:02:31]} 16. Qh5 {[%clk 0:02:53]}  Bh6 {[%clk 0:02:29]} 17. O-O-O {[%clk 0:02:45]}  Nef6 {[%clk 0:02:19]} 18. Qh3 {[%clk 0:02:42]}  Re8 {[%clk 0:02:15]} 19. Kb1 {[%clk 0:02:22]}  c5 {[%clk 0:02:15]} 20. f4 {[%clk 0:01:51]}  a4 {[%clk 0:02:13]} 21. Nf3 {[%clk 0:01:33]}  axb3 {[%clk 0:02:08]} 22. cxb3 {[%clk 0:01:32]}  c4 {[%clk 0:02:08]} 23. Ng5 {[%clk 0:01:30]}  Bxd3+ {[%clk 0:01:57]} 24. Rxd3 {[%clk 0:01:25]}  cxd3 {[%clk 0:01:58]} 25. f5 {[%clk 0:01:17]}  e5 {[%clk 0:01:47]} 26. Qh4 {[%clk 0:00:33]}  Qc7 {[%clk 0:01:34]} 27. Nh5 {[%clk 0:00:29]}  Qc2+ {[%clk 0:01:29]} 28. Ka1 {[%clk 0:00:26]}  Qxg2 {[%clk 0:01:02]} 29. Nxf6+ {[%clk 0:00:22]}  Nxf6 {[%clk 0:00:59]} 30. Ne6 {[%clk 0:00:00]}  fxe6 {[%clk 0:00:52]} 0-1


[Site "https://www.chess.com"]

[Event "Titled Tuesday Blitz July 4 Late 2023"]
[White "Janturin, Artur"]
[Black "Pranav, V"]
[WhiteFideId "4130022"]
[BlackFideId "25060783"]
[WhiteElo "2584"]
[BlackElo "2958"]
[Result "0-1"]
[Round "11"]
[TimeControl "180+2"]
[Date "2023.07.04"]
[WhiteClock "0:00:10"]
[BlackClock "0:01:26"]
[Board "27"]

1. b3 {[%clk 0:03:00]}  e5 {[%clk 0:02:58]} 2. Bb2 {[%clk 0:03:01]}  Nc6 {[%clk 0:02:59]} 3. e3 {[%clk 0:03:01]}  Nf6 {[%clk 0:02:58]} 4. Bb5 {[%clk 0:02:58]}  d6 {[%clk 0:02:54]} 5. Nf3 {[%clk 0:02:57]}  Be7 {[%clk 0:02:49]} 6. d4 {[%clk 0:02:55]}  exd4 {[%clk 0:02:47]} 7. Nxd4 {[%clk 0:02:55]}  Bd7 {[%clk 0:02:47]} 8. O-O {[%clk 0:02:50]}  O-O {[%clk 0:02:46]} 9. Nxc6 {[%clk 0:02:48]}  bxc6 {[%clk 0:02:47]} 10. Be2 {[%clk 0:02:48]}  d5 {[%clk 0:02:47]} 11. c4 {[%clk 0:02:47]}  Bd6 {[%clk 0:02:46]} 12. Nc3 {[%clk 0:02:42]}  Be6 {[%clk 0:02:44]} 13. Bf3 {[%clk 0:02:42]}  Re8 {[%clk 0:02:43]} 14. cxd5 {[%clk 0:02:37]}  cxd5 {[%clk 0:02:41]} 15. Nb5 {[%clk 0:02:34]}  Be7 {[%clk 0:02:06]} 16. Rc1 {[%clk 0:02:31]}  c5 {[%clk 0:02:05]} 17. Bxf6 {[%clk 0:02:14]}  Bxf6 {[%clk 0:02:05]} 18. Rxc5 {[%clk 0:02:12]}  Qb6 {[%clk 0:02:05]} 19. b4 {[%clk 0:01:32]}  Be7 {[%clk 0:02:04]} 20. Nc7 {[%clk 0:01:31]}  Bxc5 {[%clk 0:02:00]} 21. Nxa8 {[%clk 0:01:30]}  Rxa8 {[%clk 0:01:54]} 22. bxc5 {[%clk 0:01:30]}  Qxc5 {[%clk 0:01:55]} 23. Qd4 {[%clk 0:01:18]}  Qa5 {[%clk 0:01:52]} 24. h4 {[%clk 0:00:49]}  h6 {[%clk 0:01:46]} 25. g4 {[%clk 0:00:33]}  Rc8 {[%clk 0:01:41]} 26. g5 {[%clk 0:00:27]}  Rc4 {[%clk 0:01:39]} 27. Qe5 {[%clk 0:00:27]}  Rxh4 {[%clk 0:01:37]} 28. Rb1 {[%clk 0:00:26]}  hxg5 {[%clk 0:01:28]} 29. Rb8+ {[%clk 0:00:24]}  Kh7 {[%clk 0:01:28]} 30. Be4+ {[%clk 0:00:23]}  Rxe4 {[%clk 0:01:27]} 31. Qh2+ {[%clk 0:00:10]}  Rh4 {[%clk 0:01:26]} 0-1


[Site "https://www.chess.com"]

[Event "Titled Tuesday Blitz July 4 Late 2023"]
[White "AdvanceGuard4"]
[Black "Ibarra Jerez, Jose Carlos"]
[BlackFideId "2226332"]
[WhiteElo "2559"]
[BlackElo "2851"]
[Result "0-1"]
[Round "11"]
[TimeControl "180+2"]
[Date "2023.07.04"]
[WhiteClock "0:00:01"]
[BlackClock "0:00:37"]
[Board "28"]

1. Nf3 {[%clk 0:03:00]}  d6 {[%clk 0:02:57]} 2. g3 {[%clk 0:03:00]}  e5 {[%clk 0:02:58]} 3. Bg2 {[%clk 0:03:00]}  f5 {[%clk 0:02:58]} 4. O-O {[%clk 0:03:00]}  Nf6 {[%clk 0:02:59]} 5. d4 {[%clk 0:03:00]}  e4 {[%clk 0:03:00]} 6. Nfd2 {[%clk 0:02:59]}  Be7 {[%clk 0:03:00]} 7. c4 {[%clk 0:02:59]}  O-O {[%clk 0:03:01]} 8. Nc3 {[%clk 0:02:56]}  c6 {[%clk 0:03:00]} 9. f3 {[%clk 0:02:54]}  d5 {[%clk 0:03:01]} 10. e3 {[%clk 0:02:46]}  Na6 {[%clk 0:02:57]} 11. a3 {[%clk 0:02:46]}  Nc7 {[%clk 0:02:57]} 12. b4 {[%clk 0:02:46]}  Be6 {[%clk 0:02:54]} 13. cxd5 {[%clk 0:02:40]}  cxd5 {[%clk 0:02:53]} 14. b5 {[%clk 0:02:20]}  Rc8 {[%clk 0:02:51]} 15. a4 {[%clk 0:02:18]}  Bb4 {[%clk 0:02:49]} 16. Qb3 {[%clk 0:02:17]}  Ba5 {[%clk 0:02:32]} 17. Bb2 {[%clk 0:01:58]}  Qe8 {[%clk 0:02:14]} 18. Rac1 {[%clk 0:01:48]}  Qh5 {[%clk 0:02:12]} 19. Ba3 {[%clk 0:01:39]}  Rfe8 {[%clk 0:02:10]} 20. Bd6 {[%clk 0:01:32]}  Qh6 {[%clk 0:02:00]} 21. Bf4 {[%clk 0:01:32]}  g5 {[%clk 0:01:55]} 22. Be5 {[%clk 0:01:31]}  Nd7 {[%clk 0:01:53]} 23. Bxc7 {[%clk 0:01:26]}  Rxc7 {[%clk 0:01:53]} 24. fxe4 {[%clk 0:01:04]}  fxe4 {[%clk 0:01:48]} 25. Qb2 {[%clk 0:00:38]}  g4 {[%clk 0:01:42]} 26. Nd1 {[%clk 0:00:24]}  Rxc1 {[%clk 0:01:26]} 27. Qxc1 {[%clk 0:00:24]}  Nb6 {[%clk 0:01:26]} 28. Nb3 {[%clk 0:00:20]}  Bb4 {[%clk 0:01:26]} 29. Qc7 {[%clk 0:00:12]}  Qg7 {[%clk 0:01:25]} 30. Qxg7+ {[%clk 0:00:11]}  Kxg7 {[%clk 0:01:25]} 31. Nc5 {[%clk 0:00:11]}  Bxc5 {[%clk 0:01:24]} 32. dxc5 {[%clk 0:00:12]}  Nxa4 {[%clk 0:01:24]} 33. c6 {[%clk 0:00:13]}  bxc6 {[%clk 0:01:24]} 34. bxc6 {[%clk 0:00:14]}  Rc8 {[%clk 0:01:24]} 35. Nf2 {[%clk 0:00:10]}  Rxc6 {[%clk 0:01:21]} 36. Ra1 {[%clk 0:00:11]}  Rc4 {[%clk 0:01:18]} 37. Rb1 {[%clk 0:00:11]}  Nb6 {[%clk 0:01:15]} 38. Bf1 {[%clk 0:00:09]}  Rc2 {[%clk 0:01:15]} 39. Ra1 {[%clk 0:00:07]}  Rc7 {[%clk 0:01:14]} 40. Be2 {[%clk 0:00:04]}  h5 {[%clk 0:01:14]} 41. h3 {[%clk 0:00:05]}  gxh3 {[%clk 0:01:13]} 42. Bxh5 {[%clk 0:00:05]}  Nc4 {[%clk 0:01:11]} 43. Re1 {[%clk 0:00:03]}  Ne5 {[%clk 0:01:09]} 44. Kh2 {[%clk 0:00:02]}  Rc2 {[%clk 0:01:08]} 45. Re2 {[%clk 0:00:02]}  Rc3 {[%clk 0:00:56]} 46. g4 {[%clk 0:00:01]}  Nc4 {[%clk 0:00:53]} 47. Nxh3 {[%clk 0:00:01]}  Nxe3 {[%clk 0:00:50]} 48. Nf4 {[%clk 0:00:01]}  Bxg4 {[%clk 0:00:48]} 49. Ra2 {[%clk 0:00:02]}  Bxh5 {[%clk 0:00:47]} 50. Rxa7+ {[%clk 0:00:03]}  Kh6 {[%clk 0:00:45]} 51. Ra6+ {[%clk 0:00:03]}  Kg5 {[%clk 0:00:45]} 52. Nxh5 {[%clk 0:00:04]}  Ng4+ {[%clk 0:00:43]} 53. Kg2 {[%clk 0:00:03]}  Kxh5 {[%clk 0:00:44]} 54. Kf1 {[%clk 0:00:04]}  Rc2 {[%clk 0:00:43]} 55. Ke1 {[%clk 0:00:04]}  Kh4 {[%clk 0:00:41]} 56. Kd1 {[%clk 0:00:03]}  Rh2 {[%clk 0:00:37]} 57. Ke1 {[%clk 0:00:02]}  Kg3 {[%clk 0:00:38]} 58. Kd1 {[%clk 0:00:02]}  d4 {[%clk 0:00:35]} 59. Ke1 {[%clk 0:00:02]}  d3 {[%clk 0:00:35]} 60. Kd1 {[%clk 0:00:02]}  Ne3+ {[%clk 0:00:36]} 61. Kc1 {[%clk 0:00:01]}  d2+ {[%clk 0:00:37]} 0-1


[Site "https://www.chess.com"]

[Event "Titled Tuesday Blitz July 4 Late 2023"]
[White "ElDivis"]
[Black "Gorovets, Andrey"]
[BlackFideId "13504037"]
[WhiteElo "2555"]
[BlackElo "2737"]
[Result "0-1"]
[Round "11"]
[TimeControl "180+2"]
[Date "2023.07.04"]
[WhiteClock "0:00:00"]
[BlackClock "0:00:13"]
[Board "29"]

1. Nf3 {[%clk 0:03:00]}  Nf6 {[%clk 0:02:56]} 2. c4 {[%clk 0:03:01]}  c5 {[%clk 0:02:56]} 3. Nc3 {[%clk 0:02:58]}  d5 {[%clk 0:02:55]} 4. cxd5 {[%clk 0:02:58]}  Nxd5 {[%clk 0:02:56]} 5. g3 {[%clk 0:02:52]}  Nc7 {[%clk 0:02:53]} 6. a3 {[%clk 0:02:46]}  Nc6 {[%clk 0:02:51]} 7. Bg2 {[%clk 0:02:41]}  g6 {[%clk 0:02:51]} 8. b4 {[%clk 0:02:38]}  cxb4 {[%clk 0:02:51]} 9. axb4 {[%clk 0:02:39]}  Nxb4 {[%clk 0:02:51]} 10. Qa4+ {[%clk 0:02:31]}  Nc6 {[%clk 0:02:50]} 11. Ne5 {[%clk 0:02:21]}  Bd7 {[%clk 0:02:51]} 12. Nxc6 {[%clk 0:02:05]}  Bxc6 {[%clk 0:02:48]} 13. Bxc6+ {[%clk 0:02:04]}  bxc6 {[%clk 0:02:49]} 14. Qxc6+ {[%clk 0:02:05]}  Qd7 {[%clk 0:02:49]} 15. Qb7 {[%clk 0:01:40]}  a5 {[%clk 0:02:13]} 16. Qb6 {[%clk 0:01:22]}  Ra6 {[%clk 0:01:56]} 17. Qb8+ {[%clk 0:01:07]}  Qd8 {[%clk 0:01:56]} 18. Qxd8+ {[%clk 0:01:06]}  Kxd8 {[%clk 0:01:57]} 19. d3 {[%clk 0:00:59]}  Bg7 {[%clk 0:01:56]} 20. Bd2 {[%clk 0:00:59]}  Kd7 {[%clk 0:01:51]} 21. O-O {[%clk 0:00:57]}  Rha8 {[%clk 0:01:50]} 22. Ra4 {[%clk 0:00:52]}  Bxc3 {[%clk 0:01:48]} 23. Bxc3 {[%clk 0:00:52]}  Nd5 {[%clk 0:01:48]} 24. Bd2 {[%clk 0:00:51]}  Nb6 {[%clk 0:01:46]} 25. Ra3 {[%clk 0:00:49]}  a4 {[%clk 0:01:46]} 26. Rfa1 {[%clk 0:00:49]}  e5 {[%clk 0:01:40]} 27. Be3 {[%clk 0:00:48]}  Nd5 {[%clk 0:01:40]} 28. Bd2 {[%clk 0:00:47]}  Nc7 {[%clk 0:01:40]} 29. f4 {[%clk 0:00:42]}  exf4 {[%clk 0:01:36]} 30. gxf4 {[%clk 0:00:42]}  Nb5 {[%clk 0:01:37]} 31. R3a2 {[%clk 0:00:42]}  a3 {[%clk 0:01:37]} 32. Bb4 {[%clk 0:00:41]}  Ra4 {[%clk 0:01:30]} 33. Rb1 {[%clk 0:00:36]}  Nd4 {[%clk 0:01:23]} 34. Bc3 {[%clk 0:00:27]}  Ne6 {[%clk 0:01:19]} 35. e3 {[%clk 0:00:21]}  Kc6 {[%clk 0:01:17]} 36. Kf2 {[%clk 0:00:17]}  f5 {[%clk 0:01:11]} 37. Rb4 {[%clk 0:00:16]}  Nc5 {[%clk 0:01:07]} 38. Rxa4 {[%clk 0:00:14]}  Rxa4 {[%clk 0:01:08]} 39. Ke2 {[%clk 0:00:13]}  Kb5 {[%clk 0:00:59]} 40. Bd2 {[%clk 0:00:13]}  Ra8 {[%clk 0:00:57]} 41. Kd1 {[%clk 0:00:12]}  Ka4 {[%clk 0:00:54]} 42. Bc1 {[%clk 0:00:09]}  Kb3 {[%clk 0:00:52]} 43. Rc2 {[%clk 0:00:03]}  a2 {[%clk 0:00:43]} 44. Bb2 {[%clk 0:00:03]}  Nxd3 {[%clk 0:00:38]} 45. Ba1 {[%clk 0:00:02]}  Rd8 {[%clk 0:00:20]} 46. Rd2 {[%clk 0:00:01]}  Nf2+ {[%clk 0:00:19]} 47. Ke2 {[%clk 0:00:01]}  Rxd2+ {[%clk 0:00:20]} 48. Kxd2 {[%clk 0:00:02]}  Ng4 {[%clk 0:00:18]} 49. h3 {[%clk 0:00:03]}  Nf2 {[%clk 0:00:18]} 50. Ke2 {[%clk 0:00:03]}  Nxh3 {[%clk 0:00:16]} 51. Kd3 {[%clk 0:00:03]}  g5 {[%clk 0:00:16]} 52. fxg5 {[%clk 0:00:03]}  Nxg5 {[%clk 0:00:17]} 53. Kd4 {[%clk 0:00:03]}  Nf3+ {[%clk 0:00:17]} 54. Kd3 {[%clk 0:00:03]}  h5 {[%clk 0:00:17]} 55. e4 {[%clk 0:00:04]}  h4 {[%clk 0:00:13]} 56. exf5 {[%clk 0:00:03]}  h3 {[%clk 0:00:13]} 57. f6 {[%clk 0:00:04]}  Ng5 {[%clk 0:00:14]} 58. Be5 {[%clk 0:00:01]}  h2 {[%clk 0:00:13]} 59. Bxh2 {[%clk 0:00:00]}  a1=Q {[%clk 0:00:13]} 0-1


[Site "https://www.chess.com"]

[Event "Titled Tuesday Blitz July 4 Late 2023"]
[White "Weetik, Vjacheslav"]
[Black "Petesch, Gabriel"]
[WhiteFideId "4153472"]
[BlackFideId "2032465"]
[WhiteElo "2723"]
[BlackElo "2548"]
[Result "0-1"]
[Round "11"]
[TimeControl "180+2"]
[Date "2023.07.04"]
[WhiteClock "0:00:00"]
[BlackClock "0:00:16"]
[Board "31"]

1. e4 {[%clk 0:02:59]}  d5 {[%clk 0:02:52]} 2. exd5 {[%clk 0:02:59]}  Qxd5 {[%clk 0:02:52]} 3. Nc3 {[%clk 0:02:59]}  Qd8 {[%clk 0:02:53]} 4. d4 {[%clk 0:02:59]}  c6 {[%clk 0:02:54]} 5. Nf3 {[%clk 0:02:57]}  Nf6 {[%clk 0:02:55]} 6. Bc4 {[%clk 0:02:49]}  e6 {[%clk 0:02:56]} 7. Qe2 {[%clk 0:02:46]}  Be7 {[%clk 0:02:57]} 8. Be3 {[%clk 0:02:33]}  Nbd7 {[%clk 0:02:57]} 9. Ne5 {[%clk 0:02:23]}  Nb6 {[%clk 0:02:58]} 10. Bd3 {[%clk 0:02:18]}  Nbd5 {[%clk 0:02:55]} 11. Bd2 {[%clk 0:02:17]}  Nb4 {[%clk 0:02:52]} 12. Be3 {[%clk 0:02:03]}  Nbd5 {[%clk 0:02:51]} 13. Nxd5 {[%clk 0:01:59]}  Nxd5 {[%clk 0:02:43]} 14. Bd2 {[%clk 0:01:59]}  Nb4 {[%clk 0:02:40]} 15. Bxb4 {[%clk 0:01:58]}  Bxb4+ {[%clk 0:02:39]} 16. c3 {[%clk 0:01:58]}  Bd6 {[%clk 0:02:31]} 17. O-O-O {[%clk 0:01:51]}  Qg5+ {[%clk 0:02:26]} 18. Kb1 {[%clk 0:01:50]}  f6 {[%clk 0:02:16]} 19. f4 {[%clk 0:01:45]}  Qh6 {[%clk 0:02:07]} 20. Ng4 {[%clk 0:01:07]}  Qxf4 {[%clk 0:02:00]} 21. Rdf1 {[%clk 0:00:54]}  Qg5 {[%clk 0:02:00]} 22. h4 {[%clk 0:00:52]}  Qa5 {[%clk 0:01:57]} 23. h5 {[%clk 0:00:47]}  h6 {[%clk 0:01:56]} 24. Bg6+ {[%clk 0:00:46]}  Kd8 {[%clk 0:01:56]} 25. Ne3 {[%clk 0:00:45]}  Qc7 {[%clk 0:01:44]} 26. c4 {[%clk 0:00:43]}  Bd7 {[%clk 0:01:37]} 27. d5 {[%clk 0:00:40]}  Qb6 {[%clk 0:01:17]} 28. Rd1 {[%clk 0:00:28]}  cxd5 {[%clk 0:01:03]} 29. cxd5 {[%clk 0:00:27]}  e5 {[%clk 0:01:01]} 30. Bf5 {[%clk 0:00:14]}  Bc5 {[%clk 0:00:45]} 31. Bxd7 {[%clk 0:00:09]}  Bxe3 {[%clk 0:00:44]} 32. Be6 {[%clk 0:00:05]}  Bd4 {[%clk 0:00:44]} 33. d6 {[%clk 0:00:06]}  Qxd6 {[%clk 0:00:39]} 34. Qg4 {[%clk 0:00:06]}  Re8 {[%clk 0:00:33]} 35. Bb3 {[%clk 0:00:05]}  Re7 {[%clk 0:00:31]} 36. Qf5 {[%clk 0:00:04]}  a5 {[%clk 0:00:29]} 37. a4 {[%clk 0:00:02]}  Qd7 {[%clk 0:00:20]} 38. Qh7 {[%clk 0:00:02]}  b5 {[%clk 0:00:18]} 39. Ka2 {[%clk 0:00:01]}  Rb8 {[%clk 0:00:16]} 40. Rd3 {[%clk 0:00:01]}  bxa4 {[%clk 0:00:16]} 41. Bc4 {[%clk 0:00:01]}  Rxb2+ {[%clk 0:00:17]} 42. Ka3 {[%clk 0:00:00]}  Qd6+ {[%clk 0:00:16]} 0-1


[Site "https://www.chess.com"]

[Event "Titled Tuesday Blitz July 4 Late 2023"]
[White "Ladan, Nicholas"]
[Black "Karttunen, Mika"]
[WhiteFideId "30918855"]
[BlackFideId "502081"]
[WhiteElo "2478"]
[BlackElo "2608"]
[Result "1-0"]
[Round "11"]
[TimeControl "180+2"]
[Date "2023.07.04"]
[WhiteClock "0:00:45"]
[BlackClock "0:00:01"]
[Board "37"]

1. d4 {[%clk 0:02:59]}  Nf6 {[%clk 0:02:59]} 2. c4 {[%clk 0:02:59]}  e6 {[%clk 0:02:59]} 3. g3 {[%clk 0:02:59]}  d5 {[%clk 0:02:59]} 4. Nf3 {[%clk 0:02:59]}  Bb4+ {[%clk 0:02:53]} 5. Bd2 {[%clk 0:02:59]}  a5 {[%clk 0:02:54]} 6. Bg2 {[%clk 0:02:58]}  O-O {[%clk 0:02:53]} 7. O-O {[%clk 0:02:58]}  b6 {[%clk 0:02:47]} 8. Qc2 {[%clk 0:02:56]}  Bb7 {[%clk 0:02:46]} 9. Ne5 {[%clk 0:02:53]}  Be7 {[%clk 0:02:29]} 10. Nc3 {[%clk 0:02:51]}  Nc6 {[%clk 0:02:20]} 11. cxd5 {[%clk 0:02:29]}  Nb4 {[%clk 0:02:19]} 12. Qb3 {[%clk 0:02:19]}  exd5 {[%clk 0:02:04]} 13. a3 {[%clk 0:02:05]}  Na6 {[%clk 0:01:52]} 14. Rac1 {[%clk 0:02:00]}  c6 {[%clk 0:01:42]} 15. Na4 {[%clk 0:01:42]}  b5 {[%clk 0:01:41]} 16. Nd3 {[%clk 0:01:41]}  Bc8 {[%clk 0:01:20]} 17. Nac5 {[%clk 0:01:35]}  Nc7 {[%clk 0:01:09]} 18. Qd1 {[%clk 0:01:29]}  Bd6 {[%clk 0:00:50]} 19. Qe1 {[%clk 0:01:19]}  a4 {[%clk 0:00:34]} 20. Ne5 {[%clk 0:01:16]}  Bxe5 {[%clk 0:00:33]} 21. dxe5 {[%clk 0:01:16]}  Ng4 {[%clk 0:00:30]} 22. Nd3 {[%clk 0:01:13]}  Bf5 {[%clk 0:00:18]} 23. h3 {[%clk 0:01:09]}  Nh6 {[%clk 0:00:13]} 24. Bxh6 {[%clk 0:01:08]}  gxh6 {[%clk 0:00:13]} 25. Rxc6 {[%clk 0:01:09]}  Ne6 {[%clk 0:00:13]} 26. Rd6 {[%clk 0:01:07]}  Qg5 {[%clk 0:00:13]} 27. h4 {[%clk 0:01:00]}  Qg6 {[%clk 0:00:13]} 28. Nf4 {[%clk 0:00:59]}  Qg7 {[%clk 0:00:11]} 29. Nxd5 {[%clk 0:00:57]}  Qxe5 {[%clk 0:00:10]} 30. Ne7+ {[%clk 0:00:53]}  Kh8 {[%clk 0:00:10]} 31. Nxf5 {[%clk 0:00:53]}  Qxf5 {[%clk 0:00:10]} 32. Bxa8 {[%clk 0:00:53]}  Rxa8 {[%clk 0:00:09]} 33. Qc3+ {[%clk 0:00:52]}  Kg8 {[%clk 0:00:09]} 34. Qf3 {[%clk 0:00:50]}  Qxf3 {[%clk 0:00:08]} 35. exf3 {[%clk 0:00:51]}  Rc8 {[%clk 0:00:08]} 36. Rb6 {[%clk 0:00:51]}  Rc5 {[%clk 0:00:07]} 37. Rd1 {[%clk 0:00:49]}  Kg7 {[%clk 0:00:07]} 38. f4 {[%clk 0:00:49]}  h5 {[%clk 0:00:07]} 39. Rd7 {[%clk 0:00:48]}  Rc4 {[%clk 0:00:02]} 40. Rxb5 {[%clk 0:00:47]}  Nc5 {[%clk 0:00:02]} 41. Rc7 {[%clk 0:00:45]}  Rc1+ {[%clk 0:00:01]} 42. Kg2 {[%clk 0:00:45]} 1-0


[Site "https://www.chess.com"]